fUSD/lending_fUSD_20240118
["ID","MTS","AMOUNT","RATE_DAILY","PERIOD"]
[312055946,1705587040126,-129316.83117252,0.00022889,2]
[312055948,1705587040136,-229.48563246,0.00022889,2]
[312055950,1705587040146,-150.0,0.00022889,2]
[312055952,1705587040156,-711.21,0.00022889,2]
[312055954,1705587040167,-152609.2151085,0.0002289,2]
[312055956,1705587040178,-150.0,0.00022891,2]
[312055959,1705587040190,-150.0,0.00022891,2]
[312055961,1705587040201,-150.0,0.00022891,2]
[312055963,1705587040212,-5800.0,0.00022892,2]
[312055965,1705587040225,-150.0,0.00022895,2]
[312055968,1705587040236,-5000.0,0.00022896,2]
[312055970,1705587040247,-300.0,0.00022896,2]
[312055972,1705587040257,-150.0,0.00022896,2]
[312055974,1705587040268,-150.0,0.00022897,2]
[312055976,1705587040278,-150.0,0.00022898,2]
[312055978,1705587040288,-547.0,0.000229,2]
[312055980,1705587040299,-23217.0,0.000229,2]
[312055983,1705587040309,-65539.2307,0.000229,2]
[312055985,1705587040319,-184.77937279,0.000229,2]
[312055987,1705587040330,-5800.0,0.000229,2]
[312055989,1705587040341,-163.2756728,0.000229,2]
[312055991,1705587040351,-47158.94432093,0.000229,2]
[312055993,1705587040362,-943.35347956,0.000229,2]
[312055995,1705587040371,-330.79897173,0.000229,2]
[312055997,1705587040382,-311.5546733,0.000229,2]
[312056000,1705587040393,-186.49286772,0.000229,2]
[312056002,1705587040405,-497.73685662,0.000229,2]
[312056004,1705587040416,-179.7478753,0.000229,4]
[312056007,1705587040434,-1625.08632044,0.000229,6]
[312056009,1705587040445,-304.09941608,0.000229,2]
[312056011,1705587040457,-1879.0,0.000229,2]
[312056013,1705587040467,-1309.87077886,0.000229,2]
[312056015,1705587040478,-150.0,0.00022903,2]
[312056018,1705587040490,-150.0,0.00022904,2]
[312056020,1705587040500,-150.0,0.00022908,2]
[312056022,1705587040511,-150.0,0.00022913,2]
[312056024,1705587040521,-150.0,0.00022917,2]
[312056026,1705587040533,-150.0,0.00022917,2]
[312056028,1705587040543,-150.0,0.00022921,2]
[312056030,1705587040554,-150.0,0.00022925,2]
[312056033,1705587040565,-150.0,0.00022926,2]
[312056035,1705587040576,-150.0,0.00022931,2]
[312056037,1705587040587,-150.0,0.00022936,2]
[312056039,1705587040598,-167.39,0.00022939,2]
[312056041,1705587040608,-150.0,0.00022942,2]
[312056043,1705587040620,-150.0,0.00022943,2]
[312056046,1705587040634,-150.0,0.00022946,2]
[312056048,1705587040644,-150.0,0.00022948,2]
[312056050,1705587040655,-150.0,0.0002295,2]
[312056052,1705587040666,-150.0,0.00022952,2]
[312056054,1705587040677,-150.0,0.00022954,2]
[312056057,1705587040688,-157.02,0.00022956,2]
[312056059,1705587040698,-150.0,0.00022963,2]
[312056061,1705587040710,-150.0,0.00022968,2]
[312056063,1705587040721,-150.0,0.0002297,2]
[312056065,1705587040732,-150.0,0.00022976,2]
[312056067,1705587040742,-1131.41592382,0.0002298,3]
[312056070,1705587040753,-4651.86755386,0.0002298,2]
[312056072,1705587040764,-150.0,0.00022981,2]
[312056074,1705587040775,-150.0,0.00022983,2]
[312056076,1705587040785,-150.0,0.00022985,2]
[312056078,1705587040796,-150.0,0.00022986,4]
[312056080,1705587040807,-215.86,0.0002299,2]
[312056083,1705587040818,-150.0,0.00022991,2]
[312056085,1705587040828,-150.0,0.00022993,2]
[312056087,1705587040838,-150.0,0.00022993,2]
[312056089,1705587040849,-150.0,0.00022994,2]
[312056091,1705587040859,-150.0,0.00022995,2]
[312056094,1705587040870,-20079.57247231,0.00022996,2]
[312056096,1705587040881,-8637.73011067,0.00022996,2]
[312056098,1705587040891,-150.0,0.00022997,2]
[312056100,1705587040903,-3176.3012601,0.00022997,2]
[312056102,1705587040913,-1896.6649073,0.00022997,2]
[312056104,1705587040924,-47592.2796836,0.00022997,2]
[312056106,1705587040934,-318.907396,0.00022997,2]
[312056109,1705587040945,-8224.7599963,0.00022997,2]
[312056111,1705587040955,-302.01136108,0.00022998,2]
[312056113,1705587040966,-599.27979208,0.00022998,2]
[312056115,1705587040976,-727.2,0.00022999,2]
[312056117,1705587040987,-3296.21810704,0.00022999,2]
[312056120,1705587040997,-6306.5704509,0.00022999,2]
[312056122,1705587041008,-300.02,0.00022999,2]
[312056124,1705587041018,-381.17753907,0.00022999,2]
[312056126,1705587041029,-381.89192925,0.00022999,2]
[312056128,1705587041040,-381.17753907,0.00022999,2]
[312056130,1705587041050,-381.89192925,0.00022999,2]
[312056133,1705587041061,-381.17753907,0.00022999,2]
[312056135,1705587041071,-381.89192925,0.00022999,2]
[312056137,1705587041082,-381.17753907,0.00022999,2]
[312056139,1705587041092,-381.89192925,0.00022999,2]
[312056140,1705587041103,-381.17753907,0.00022999,2]
[312056141,1705587041114,-381.89192925,0.00022999,2]
[312056142,1705587041123,-381.17753907,0.00022999,2]
[312056143,1705587041134,-381.89192925,0.00022999,2]
[312056144,1705587041145,-381.17753907,0.00022999,2]
[312056145,1705587041160,-381.89192925,0.00022999,2]
[312056147,1705587041179,-381.17753907,0.00022999,2]
[312056149,1705587041193,-381.89192925,0.00022999,2]
[312056151,1705587041204,-381.17753907,0.00022999,2]
[312056154,1705587041217,-381.89192925,0.00022999,2]
[312056156,1705587041232,-381.17753907,0.00022999,2]
[312056158,1705587041250,-381.17753907,0.00022999,2]
[312056160,1705587041260,-381.89192925,0.00022999,2]
[312056162,1705587041271,-381.17753907,0.00022999,2]
[312056164,1705587041281,-381.89192925,0.00022999,2]
[312056166,1705587041292,-381.17753907,0.00022999,2]
[312056168,1705587041302,-381.89192925,0.00022999,2]
[312056171,1705587041313,-381.89192925,0.00022999,2]
[312056173,1705587041324,-1337370.18421613,0.00022999,3]
[312056176,1705587041341,-1319.04852,0.00022999,3]
[312056178,1705587041354,-343.36644218,0.00022999,3]
[312056180,1705587041367,-846.249995,0.00022999,3]
[312056183,1705587041380,-1120.6283,0.00022999,3]
[312056187,1705587041408,-5609.59142398,0.00022999,3]
[312056189,1705587041421,-389.2220593,0.00022999,3]
[312056192,1705587041439,-137259.07328876,0.00022999,3]
[312056194,1705587041450,-156.0,0.00022999,2]
[312056196,1705587041461,-181088.09529181,0.00023,2]
[312056199,1705587041472,-8883.92,0.00023,2]
[312056201,1705587041482,-1211629.50925126,0.00023,2]
[312056203,1705587041494,-145095.23900065,0.00023,2]
[312056222,1705587041704,-279.00928598,0.000229,2]
[312056223,1705587041714,-1489.44708886,0.00023,2]
[312056224,1705587041731,-524.32057752,0.00023,2]
[312056225,1705587041748,-1087.01344843,0.00023,2]
[312056226,1705587041761,-828.56922861,0.00023,2]
[312056227,1705587041774,-21459.44416083,0.00023,2]
[312056228,1705587041787,-1424.0,0.00023,2]
[312056229,1705587041799,-513.12836649,0.00023,2]
[312056230,1705587041813,-671.86783287,0.00023,2]
[312056231,1705587041825,-4533.13847482,0.00023,2]
[312056232,1705587041892,-22373.83182092,0.00023,2]
[312056233,1705587041903,-709.77,0.00023,2]
[312056234,1705587041913,-2529279.5521469,0.00023,2]
[312056235,1705587041923,-8721308.34598334,0.00023,2]
[312056236,1705587041934,-151.0,0.00023,7]
[312056237,1705587041944,-151.0,0.00023,7]
[312056238,1705587041954,-1891.75005992,0.00023,2]
[312056239,1705587041965,-151.0,0.00023,7]
[312056240,1705587041975,-151.0,0.00023,7]
[312056241,1705587041986,-192.901157,0.00023,7]
[312056242,1705587041996,-150.0,0.00023,2]
[312056243,1705587042007,-151.0,0.00023,7]
[312056244,1705587042018,-151.0,0.00023,7]
[312056245,1705587042028,-166.610385,0.00023,7]
[312056246,1705587042038,-166.610385,0.00023,7]
[312056247,1705587042049,-166.610385,0.00023,7]
[312056248,1705587042059,-166.610385,0.00023,7]
[312056249,1705587042070,-151.0,0.00023,7]
[312056250,1705587042079,-151.0,0.00023,7]
[312056251,1705587042090,-151.0,0.00023,7]
[312056252,1705587042101,-151.0,0.00023,7]
[312056253,1705587042111,-435.0,0.00023,2]
[312056254,1705587042122,-201.021415,0.00023,7]
[312056255,1705587042478,-201.021415,0.00023,7]
[312056256,1705587042496,-201.021415,0.00023,7]
[312056257,1705587042507,-201.021415,0.00023,7]
[312056258,1705587042518,-1500.0,0.00023,2]
[312056259,1705587042528,-1000.0,0.00023,2]
[312056260,1705587042538,-344.0,0.00023,2]
[312056261,1705587042547,-151.0,0.00023,7]
[312056262,1705587042557,-151.0,0.00023,7]
[312056263,1705587042568,-156.0,0.00023,2]
[312056264,1705587042579,-156.0,0.00023,2]
[312056265,1705587042589,-156.0,0.00023,2]
[312056266,1705587042599,-156.0,0.00023,2]
[312056267,1705587042609,-156.0,0.00023,2]
[312056268,1705587042622,-159.13,0.00023013,2]
[312056269,1705587042634,-3887.0,0.00023014,3]
[312056270,1705587042644,-163.27567203,0.00023028,2]
[312056271,1705587042655,-158.27,0.00023029,2]
[312056272,1705587042665,-156.82,0.00023029,2]
[312056273,1705587042674,-1270.10140391,0.00023068,2]
[312056274,1705587042683,-162.29,0.00023114,2]
[312056275,1705587042692,-11761.39822151,0.0002313,2]
[312056276,1705587042702,-500.0,0.00023135,7]
[312056277,1705587042711,-163.27567203,0.00023157,2]
[312056278,1705587042720,-150.7,0.000232,2]
[312056279,1705587042730,-423.75,0.000232,2]
[312056280,1705587042739,-157.02,0.00023226,2]
[312056281,1705587042748,-156.82,0.00023246,2]
[312056282,1705587042757,-159.9,0.00023254,2]
[312056283,1705587042766,-159.13,0.00023264,2]
[312056284,1705587042775,-163.27567203,0.00023285,2]
[312056285,1705587042785,-392.19521849,0.00023288,2]
[312056286,1705587042796,-270.0,0.00023288,4]
[312056287,1705587042805,-270.0,0.00023288,4]
[312056288,1705587042815,-384.64603873,0.00023288,4]
[312056289,1705587042824,-381.7992686,0.00023288,4]
[312056290,1705587042833,-500.0,0.00023288,4]
[312056291,1705587042843,-500.0,0.00023288,4]
[312056292,1705587042852,-500.0,0.00023288,4]
[312056294,1705587042862,-500.0,0.00023288,4]
[312056295,1705587042871,-500.0,0.00023288,4]
[312056296,1705587042880,-500.0,0.00023288,4]
[312056297,1705587042889,-500.0,0.00023288,4]
[312056298,1705587042898,-500.0,0.00023288,4]
[312056299,1705587042907,-500.0,0.00023288,4]
[312056300,1705587042916,-325.59360476,0.00023288,4]
[312056301,1705587042925,-685.43757143,0.00023288,4]
[312056302,1705587042934,-685.43757143,0.00023288,4]
[312056303,1705587042943,-685.43757143,0.00023288,4]
[312056304,1705587042952,-685.43757143,0.00023288,4]
[312056305,1705587042961,-685.43757143,0.00023288,4]
[312056306,1705587042970,-685.43757143,0.00023288,4]
[312056307,1705587042979,-685.43757143,0.00023288,4]
[312056308,1705587042988,-685.43757143,0.00023288,4]
[312056309,1705587042998,-685.43757143,0.00023288,4]
[312056310,1705587043007,-685.43757143,0.00023288,4]
[312056311,1705587043016,-685.43757143,0.00023288,4]
[312056313,1705587043025,-685.43757143,0.00023288,4]
[312056315,1705587043034,-685.43757143,0.00023288,4]
[312056316,1705587043043,-685.43757143,0.00023288,4]
[312056317,1705587043053,-685.43757143,0.00023288,4]
[312056318,1705587043061,-685.43757143,0.00023288,4]
[312056319,1705587043070,-685.43757143,0.00023288,4]
[312056320,1705587043079,-685.43757143,0.00023288,4]
[312056321,1705587043088,-685.43757143,0.00023288,4]
[312056322,1705587043097,-685.43757143,0.00023288,4]
[312056323,1705587043106,-685.43757143,0.00023288,4]
[312056324,1705587043115,-685.43757143,0.00023288,4]
[312056325,1705587043124,-685.43757143,0.00023288,4]
[312056326,1705587043133,-548.35005713,0.00023288,4]
[312056327,1705587043142,-548.35005713,0.00023288,4]
[312056328,1705587043153,-548.35005713,0.00023288,4]
[312056329,1705587043166,-548.35005713,0.00023288,4]
[312056330,1705587043175,-548.35005713,0.00023288,4]
[312056331,1705587043183,-565.4654272,0.00023288,4]
[312056332,1705587043192,-565.4654272,0.00023288,4]
[312056333,1705587043202,-565.4654272,0.00023288,4]
[312056334,1705587043211,-565.4654272,0.00023288,4]
[312056335,1705587043220,-565.4654272,0.00023288,4]
[312056336,1705587043230,-565.4654272,0.00023288,4]
[312056337,1705587043239,-565.4654272,0.00023288,4]
[312056338,1705587043248,-565.4654272,0.00023288,4]
[312056339,1705587043257,-565.4654272,0.00023288,4]
[312056340,1705587043266,-565.4654272,0.00023288,4]
[312056341,1705587043275,-480.17813214,0.00023288,4]
[312056342,1705587043284,-500.0,0.00023288,2]
[312056343,1705587043293,-543.78385934,0.00023288,2]
[312056344,1705587043301,-168.07621856,0.00023288,4]
[312056345,1705587043310,-381.72234416,0.00023288,4]
[312056346,1705587043319,-490.39770724,0.00023288,2]
[312056347,1705587043328,-206.7514313,0.00023288,2]
[312056348,1705587043337,-170.6616291,0.00023288,4]
[312056349,1705587043349,-152.14612084,0.00023288,4]
[312056350,1705587043358,-608.44620598,0.00023288,2]
[312056351,1705587043367,-500.0,0.00023288,4]
[312056352,1705587043377,-167.88830023,0.00023288,4]
[312056353,1705587043386,-500.0,0.00023288,4]
[312056354,1705587043396,-500.0,0.00023288,4]
[312056355,1705587043405,-500.0,0.00023288,4]
[312056356,1705587043415,-193.65164395,0.00023288,4]
[312056357,1705587043425,-500.0,0.00023288,4]
[312056358,1705587043435,-500.0,0.00023288,4]
[312056359,1705587043444,-203.41552539,0.00023288,2]
[312056360,1705587043454,-152.68893766,0.00023288,4]
[312056361,1705587043463,-365.32435077,0.00023288,2]
[312056362,1705587043473,-2827.32713601,0.00023288,4]
[312056363,1705587043482,-256.1041397,0.00023288,4]
[312056364,1705587043491,-500.0,0.00023288,4]
[312056365,1705587043501,-500.0,0.00023288,4]
[312056366,1705587043510,-639.90390232,0.00023288,4]
[312056368,1705587043519,-500.0,0.00023288,4]
[312056370,1705587043528,-500.0,0.00023288,4]
[312056372,1705587043538,-500.0,0.00023288,4]
[312056373,1705587043547,-545.70506663,0.00023288,4]
[312056374,1705587043556,-639.25354264,0.00023288,4]
[312056375,1705587043565,-500.0,0.00023288,4]
[312056376,1705587043574,-500.0,0.00023288,4]
[312056377,1705587043583,-499.99999999,0.00023288,4]
[312056378,1705587043592,-610.87882977,0.00023288,4]
[312056379,1705587043601,-381.79926861,0.00023288,4]
[312056380,1705587043611,-363.09826445,0.00023288,2]
[312056381,1705587043620,-574.72883816,0.00023288,2]
[312056382,1705587043632,-468.82049449,0.00023288,2]
[312056383,1705587043641,-344.8373029,0.00023288,2]
[312056384,1705587043651,-229.89153526,0.00023288,2]
[312056385,1705587043660,-500.0,0.00023379,7]
[312056386,1705587043669,-206.0,0.00023407,2]
[312056387,1705587043679,-163.27567203,0.00023413,2]
[312056388,1705587043688,-156.82,0.00023463,2]
[312056389,1705587043697,-162.29,0.00023475,2]
[312056390,1705587043707,-157.02,0.00023496,2]
[312056391,1705587043716,-250.0,0.000235,2]
[312056392,1705587043725,-159.13,0.00023515,2]
[312056393,1705587043734,-200000.0,0.00023519,2]
[312056394,1705587043743,-163.27567203,0.00023542,2]
[312056395,1705587043751,-367.49,0.00023575,2]
[312056396,1705587043761,-167.39,0.00023589,2]
[312056397,1705587043770,-500.0,0.00023623,7]
[312056398,1705587043779,-163.27567203,0.0002367,2]
[312056399,1705587043788,-1217.74,0.00023673,2]
[312056400,1705587043798,-156.82,0.00023681,2]
[312056401,1705587043807,-180.0,0.00023716,2]
[312056402,1705587043816,-159.13,0.00023766,2]
[312056403,1705587043825,-157.02,0.00023766,2]
[312056404,1705587043834,-163.27567203,0.00023798,2]
[312056405,1705587043843,-162.29,0.00023836,2]
[312056406,1705587043852,-500.0,0.00023866,7]
[312056407,1705587043861,-156.82,0.00023898,2]
[312056408,1705587043869,-163.27567203,0.00023927,2]
[312056409,1705587043878,-431.45808483,0.00024,2]
[312056411,1705587043887,-201.09439878,0.00024,2]
[312056412,1705587043896,-155.0,0.00024,2]
[312056413,1705587043908,-25398.31681271,0.00024,3]
[312056414,1705587043918,-4911.42048619,0.00024,2]
[312056415,1705587043926,-2300.0,0.00024,3]
[312056416,1705587043935,-250.0,0.00024,2]
[312056417,1705587043944,-159.13,0.00024017,2]
[312056418,1705587043953,-157.02,0.00024037,2]
[312056420,1705587043962,-1000.0,0.00024051,2]
[312056422,1705587043971,-163.27567203,0.00024055,2]
[312056423,1705587043979,-500.0,0.0002411,7]
[312056424,1705587043988,-156.82,0.00024115,2]
[312056425,1705587043997,-163.27567203,0.00024183,2]
[312056426,1705587044006,-162.29,0.00024197,2]
[312056427,1705587044015,-167.39,0.00024238,2]
[312056428,1705587044024,-159.13,0.00024268,2]
[312056429,1705587044034,-167.0,0.00024297,2]
[312056430,1705587044043,-167.0,0.00024297,2]
[312056431,1705587044053,-167.0,0.00024297,2]
[312056432,1705587044062,-157.02,0.00024307,2]
[312056433,1705587044071,-288.0,0.0002431,2]
[312056434,1705587044080,-163.27567203,0.00024312,2]
[312056435,1705587044089,-156.82,0.00024333,2]
[312056436,1705587044098,-500.0,0.00024353,7]
[312056437,1705587044108,-176.83,0.00024357,2]
[312056438,1705587044117,-163.27567203,0.0002444,2]
[312056439,1705587044126,-20000.0,0.000245,4]
[312056440,1705587044135,-250.0,0.000245,2]
[312056441,1705587044144,-1217.74,0.0002451,2]
[312056442,1705587044155,-712.0,0.00024511,2]
[312056443,1705587044164,-159.13,0.00024519,2]
[312056444,1705587044173,-156.82,0.0002455,2]
[312056445,1705587044183,-367.49,0.00024554,2]
[312056446,1705587044193,-162.29,0.00024558,2]
[312056447,1705587044202,-163.27567203,0.00024569,2]
[312056448,1705587044211,-157.02,0.00024577,2]
[312056449,1705587044220,-500.0,0.00024597,7]
[312056450,1705587044229,-159.9,0.00024626,2]
[312056451,1705587044238,-158.27,0.00024636,2]
[312056452,1705587044247,-250.0,0.00024658,2]
[312056453,1705587044256,-606.48,0.00024658,4]
[312056454,1705587044265,-163.27567203,0.00024697,2]
[312056455,1705587044273,-156.82,0.00024767,2]
[312056456,1705587044282,-159.13,0.0002477,2]
[312056457,1705587044292,-169.09,0.0002478,2]
[312056458,1705587044302,-910.0,0.000248,2]
[312056459,1705587044311,-153.0,0.000248,2]
[312056460,1705587044320,-163.27567203,0.00024825,2]
[312056461,1705587044329,-500.0,0.0002484,7]
[312056462,1705587044338,-157.02,0.00024847,2]
[312056463,1705587044347,-24284.40654428,0.0002488,2]
[312056464,1705587044356,-167.39,0.00024887,2]
[312056465,1705587044365,-1002.0,0.000249,2]
[312056466,1705587044375,-162.29,0.00024919,2]
[312056467,1705587044384,-163.27567203,0.00024954,2]
[312056468,1705587044393,-156.82,0.00024984,2]
[312056469,1705587044404,-192.4053857,0.00025,5]
[312056470,1705587044414,-1583.8032876,0.00025,2]
[312056471,1705587044423,-201.98827283,0.00025,2]
[312056472,1705587044432,-889.20656427,0.00025,2]
[312056473,1705587044442,-303.39738056,0.00025,2]
[312056474,1705587044452,-167.33638332,0.00025,2]
[312056475,1705587044461,-158.65039207,0.00025,2]
[312056476,1705587044470,-933.54918924,0.00025,2]
[312056477,1705587044479,-1088.0,0.00025,2]
[312056478,1705587044488,-639.87534942,0.00025,7]
[312056479,1705587044498,-315.95387122,0.00025,2]
[312056480,1705587044507,-1000.0,0.00025,2]
[312056481,1705587044516,-1000.0,0.00025,2]
[312056482,1705587044526,-1035.0,0.00025,2]
[312056483,1705587044536,-20000.0,0.00025,2]
[312056484,1705587044545,-150.0,0.00025,2]
[312056485,1705587044554,-2512.0,0.00025,2]
[312056486,1705587044563,-300.0,0.00025,2]
[312056487,1705587044573,-250.0,0.00025,2]
[312056488,1705587044583,-1299.889667,0.00025,2]
[312056489,1705587044592,-150.0,0.00025,2]
[312056490,1705587044601,-150.0,0.00025,2]
[312056491,1705587044611,-450.0,0.0002502,3]
[312056492,1705587044621,-159.13,0.00025021,2]
[312056493,1705587044632,-163.27567203,0.00025082,2]
[312056494,1705587044641,-500.0,0.00025084,7]
[312056495,1705587044650,-163.27567203,0.0002521,2]
[312056496,1705587044660,-500.0,0.00025327,7]
[312056497,1705587044669,-163.27567203,0.00025339,2]
[312056498,1705587044678,-1217.74,0.00025347,2]
[312056499,1705587044687,-163.27567203,0.00025467,2]
[312056500,1705587044697,-367.49,0.00025532,2]
[312056501,1705587044707,-500.0,0.00025571,7]
[312056502,1705587044716,-163.27567203,0.00025595,2]
[312056503,1705587044725,-167.0,0.00025633,2]
[312056504,1705587044734,-163.27567203,0.00025724,2]
[312056505,1705587044743,-154.0441651,0.00025768,2]
[312056506,1705587044752,-500.0,0.00025814,7]
[312056507,1705587044762,-50000.0,0.0002582,2]
[312056508,1705587044771,-1000.0,0.0002582,3]
[312056509,1705587044780,-50000.0,0.0002582,2]
[312056510,1705587044789,-163.27567203,0.00025852,2]
[312056511,1705587044799,-187.0,0.00025857,2]
[312056512,1705587044808,-150.0,0.00025881,2]
[312056513,1705587044817,-153.0,0.000259,2]
[312056514,1705587044826,-163.27567203,0.0002598,2]
[312056515,1705587044836,-159.9,0.00025998,2]
[312056516,1705587044846,-1500.0,0.00026,2]
[312056517,1705587044854,-701.95557027,0.00026,2]
[312056518,1705587044863,-5000.0,0.00026,2]
[312056519,1705587044873,-1600.0,0.00026,2]
[312056520,1705587044882,-2200.0,0.00026,2]
[312056521,1705587044891,-2350.0,0.00026,3]
[312056522,1705587044901,-300.0,0.00026,2]
[312056523,1705587044910,-1299.889667,0.00026,2]
[312056524,1705587044919,-150.0,0.00026,2]
[312056525,1705587044928,-1261.52667845,0.00026,2]
[312056526,1705587044936,-1261.52667845,0.00026,2]
[312056527,1705587044946,-150.0,0.00026,2]
[312056528,1705587044955,-2167.02193466,0.00026,2]
[312056529,1705587044964,-500.0,0.00026058,7]
[312056530,1705587044973,-151.0,0.00026088,7]
[312056531,1705587044982,-151.0,0.00026088,7]
[312056532,1705587044991,-151.0,0.00026088,7]
[312056533,1705587045000,-166.610385,0.00026088,7]
[312056534,1705587045009,-166.610385,0.00026088,7]
[312056535,1705587045018,-151.0,0.00026088,7]
[312056536,1705587045028,-151.0,0.00026088,7]
[312056537,1705587045037,-201.021415,0.00026088,7]
[312056538,1705587045046,-201.021415,0.00026088,7]
[312056539,1705587045056,-50000.0,0.00026088,2]
[312056540,1705587045064,-50000.0,0.00026088,2]
[312056541,1705587045073,-1000.0,0.00026088,3]
[312056542,1705587045083,-1000.0,0.00026088,3]
[312056543,1705587045092,-1000.0,0.00026088,3]
[312056544,1705587045101,-1000.0,0.00026088,3]
[312056545,1705587045111,-1000.0,0.00026088,3]
[312056546,1705587045120,-1000.0,0.00026088,3]
[312056547,1705587045129,-1000.0,0.00026088,3]
[312056548,1705587045138,-1000.0,0.00026088,3]
[312056549,1705587045147,-1000.0,0.00026088,3]
[312056550,1705587045157,-1000.0,0.00026088,3]
[312056551,1705587045166,-1000.0,0.00026088,3]
[312056552,1705587045175,-1000.0,0.00026088,3]
[312056553,1705587045185,-1000.0,0.00026088,3]
[312056554,1705587045193,-1000.0,0.00026088,3]
[312056555,1705587045203,-1000.0,0.00026088,3]
[312056556,1705587045212,-1000.0,0.00026088,3]
[312056557,1705587045221,-50000.0,0.00026088,2]
[312056558,1705587045230,-50000.0,0.00026088,2]
[312056559,1705587045239,-163.27567203,0.00026109,2]
[312056560,1705587045248,-1000.0,0.00026128,3]
[312056561,1705587045258,-1000.0,0.00026128,3]
[312056562,1705587045267,-1000.0,0.00026128,3]
[312056563,1705587045276,-1000.0,0.00026128,3]
[312056564,1705587045285,-1000.0,0.00026128,3]
[312056565,1705587045294,-1000.0,0.00026128,3]
[312056566,1705587045303,-1000.0,0.00026128,3]
[312056567,1705587045312,-1000.0,0.00026128,3]
[312056568,1705587045322,-1000.0,0.00026128,3]
[312056569,1705587045331,-1000.0,0.00026128,3]
[312056570,1705587045341,-1000.0,0.00026128,3]
[312056571,1705587045350,-1000.0,0.00026128,3]
[312056572,1705587045359,-1000.0,0.00026128,3]
[312056573,1705587045368,-1000.0,0.00026128,3]
[312056574,1705587045377,-1000.0,0.00026128,3]
[312056575,1705587045387,-1000.0,0.00026128,3]
[312056576,1705587045559,-1000.0,0.00026128,3]
[312056577,1705587045570,-1000.0,0.00026128,3]
[312056578,1705587045580,-1000.0,0.00026128,3]
[312056579,1705587045589,-1000.0,0.0002616,3]
[312056580,1705587045598,-50000.0,0.0002616,2]
[312056581,1705587045608,-1217.74,0.00026184,2]
[312056582,1705587045618,-163.27567203,0.00026237,2]
[312056583,1705587045628,-500.0,0.00026301,7]
[312056584,1705587045639,-163.27567203,0.00026365,2]
[312056585,1705587045648,-163.27567203,0.00026494,2]
[312056586,1705587045658,-367.49,0.00026511,2]
[312056587,1705587045668,-500.0,0.00026545,7]
[312056588,1705587045678,-381.17753907,0.00026574,2]
[312056589,1705587045688,-381.89192925,0.00026574,2]
[312056590,1705587045697,-20933.59,0.00026575,2]
[312056591,1705587045707,-163.27567203,0.00026622,2]
[312056592,1705587045716,-450.0,0.00026673,3]
[312056593,1705587045726,-206.0,0.00026734,7]
[312056594,1705587045736,-163.27567203,0.0002675,2]
[312056595,1705587045745,-5386.56161276,0.00026765,2]
[312056596,1705587045755,-500.0,0.00026788,7]
[312056597,1705587045764,-163.27567203,0.00026879,2]
[312056598,1705587045773,-763.7752539,0.0002697,2]
[312056599,1705587045783,-167.0,0.0002697,2]
[312056600,1705587045792,-155.0,0.00027,2]
[312056601,1705587045803,-417.60986336,0.00027,2]
[312056602,1705587045812,-300.0,0.00027,2]
[312056603,1705587045821,-153.0,0.00027,2]
[312056604,1705587045831,-1299.889667,0.00027,2]
[312056605,1705587045840,-150.0,0.00027,2]
[312056606,1705587045849,-150.0,0.00027,2]
[312056607,1705587045859,-163.27567203,0.00027007,2]
[312056608,1705587045868,-288.0,0.00027011,2]
[312056609,1705587045878,-1217.74,0.00027022,2]